[Event "Early-Titled-Tuesday-Blitz-May-07-2024"]
[Site "Chess.com"]
[Date "2024.05.07"]
[Round "1"]
[White "yonaltimur"]
[Black "Yeritsyaan"]
[Result "0-1"]
[WhiteElo "2409"]
[BlackElo "2710"]
[TimeControl "180+1"]
[EndTime "8:08:27 PDT"]
[Termination "Yeritsyaan won by checkmate"]

1. e4 {[%clk 0:02:58.9]} 1... e5 {[%clk 0:02:56.2]} 2. Nf3 {[%clk 0:02:58.1]}
2... Nc6 {[%clk 0:02:56.3]} 3. Bb5 {[%clk 0:02:58]} 3... a6 {[%clk 0:02:54.6]}
4. Ba4 {[%clk 0:02:57.7]} 4... Nf6 {[%clk 0:02:54]} 5. O-O {[%clk 0:02:57.6]}
5... b5 {[%clk 0:02:51.1]} 6. Bb3 {[%clk 0:02:57.1]} 6... Nxe4 {[%clk
0:02:51.6]} 7. d4 {[%clk 0:02:46.2]} 7... d5 {[%clk 0:02:49.5]} 8. dxe5 {[%clk
0:02:46.1]} 8... Be6 {[%clk 0:02:49.1]} 9. Nbd2 {[%clk 0:02:40.1]} 9... Bc5
{[%clk 0:02:45.3]} 10. Nxe4 {[%clk 0:02:29.4]} 10... dxe4 {[%clk 0:02:45.5]} 11.
Bxe6 {[%clk 0:02:25.4]} 11... fxe6 {[%clk 0:02:41.9]} 12. Qxd8+ {[%clk
0:02:24.3]} 12... Rxd8 {[%clk 0:02:40.3]} 13. Ng5 {[%clk 0:02:24.2]} 13... O-O
{[%clk 0:01:45.3]} 14. Nxe4 {[%clk 0:01:47.5]} 14... Be7 {[%clk 0:01:44.4]} 15.
Bg5 {[%clk 0:01:45.8]} 15... Bxg5 {[%clk 0:01:38.8]} 16. Nxg5 {[%clk 0:01:46.7]}
16... Rfe8 {[%clk 0:01:39]} 17. f4 {[%clk 0:01:33.8]} 17... h6 {[%clk
0:01:31.9]} 18. Nf3 {[%clk 0:01:31.5]} 18... Nb4 {[%clk 0:01:27.1]} 19. Rf2
{[%clk 0:01:20.4]} 19... c5 {[%clk 0:01:25.8]} 20. a3 {[%clk 0:01:11.4]} 20...
Nd5 {[%clk 0:01:25.9]} 21. g3 {[%clk 0:01:11.9]} 21... Ne3 {[%clk 0:01:24.7]}
22. Re2 {[%clk 0:01:10]} 22... Nc4 {[%clk 0:01:24.8]} 23. b3 {[%clk 0:01:10.1]}
23... Nb6 {[%clk 0:01:25.2]} 24. Kf2 {[%clk 0:01:07.7]} 24... Rd5 {[%clk
0:01:23.1]} 25. Rd2 {[%clk 0:01:03.3]} 25... Red8 {[%clk 0:01:21.9]} 26. Rxd5
{[%clk 0:01:03.4]} 26... Rxd5 {[%clk 0:01:21.1]} 27. Ke2 {[%clk 0:01:02.4]}
27... Rd7 {[%clk 0:01:08.6]} 28. Rd1 {[%clk 0:01:01.9]} 28... Nd5 {[%clk
0:01:09.2]} 29. Kf2 {[%clk 0:00:59.6]} 29... Rc7 {[%clk 0:01:02.8]} 30. c4
{[%clk 0:00:58.7]} 30... Nc3 {[%clk 0:00:56.8]} 31. Rd6 {[%clk 0:00:54.4]} 31...
Ne4+ {[%clk 0:00:56.8]} 32. Ke3 {[%clk 0:00:45.2]} 32... Nxd6 {[%clk 0:00:57.7]}
33. exd6 {[%clk 0:00:46.1]} 33... Rd7 {[%clk 0:00:58.6]} 34. b4 {[%clk
0:00:44.2]} 34... Rxd6 {[%clk 0:00:56.2]} 35. bxc5 {[%clk 0:00:43]} 35... Rd1
{[%clk 0:00:48.8]} 36. c6 {[%clk 0:00:40.5]} 36... Rd8 {[%clk 0:00:40.4]} 37.
cxb5 {[%clk 0:00:35.4]} 37... axb5 {[%clk 0:00:41.3]} 38. Nd4 {[%clk 0:00:29.9]}
38... Rc8 {[%clk 0:00:35.1]} 39. Kd3 {[%clk 0:00:21.8]} 39... Kf7 {[%clk
0:00:35.4]} 40. Kc3 {[%clk 0:00:22]} 40... Ke7 {[%clk 0:00:35.9]} 41. Kb4 {[%clk
0:00:22.4]} 41... Kd6 {[%clk 0:00:30.3]} 42. Kxb5 {[%clk 0:00:17.7]} 42... Rb8+
{[%clk 0:00:30.2]} 43. Ka6 {[%clk 0:00:17.1]} 43... Rb1 {[%clk 0:00:27.3]} 44.
a4 {[%clk 0:00:16.6]} 44... g5 {[%clk 0:00:25.2]} 45. a5 {[%clk 0:00:13.9]}
45... Rb4 {[%clk 0:00:20.6]} 46. c7 {[%clk 0:00:09.7]} 46... Kxc7 {[%clk
0:00:19.3]} 47. Nxe6+ {[%clk 0:00:10]} 47... Kd6 {[%clk 0:00:19.9]} 48. Nd8
{[%clk 0:00:07]} 48... gxf4 {[%clk 0:00:17.8]} 49. gxf4 {[%clk 0:00:06.8]} 49...
Rxf4 {[%clk 0:00:18.7]} 50. Ka7 {[%clk 0:00:07.4]} 50... Rh4 {[%clk 0:00:18.6]}
51. a6 {[%clk 0:00:06.7]} 51... Rxh2 {[%clk 0:00:19.3]} 52. Kb8 {[%clk
0:00:03.9]} 52... Kd7 {[%clk 0:00:18.6]} 53. Nf7 {[%clk 0:00:02.6]} 53... Rb2+
{[%clk 0:00:18.2]} 54. Ka8 {[%clk 0:00:02.4]} 54... h5 {[%clk 0:00:18.5]} 55. a7
{[%clk 0:00:02.4]} 55... h4 {[%clk 0:00:19.1]} 56. Ne5+ {[%clk 0:00:01.4]} 56...
Kc7 {[%clk 0:00:19]} 57. Ng6 {[%clk 0:00:01.7]} 57... h3 {[%clk 0:00:18.6]} 58.
Nh4 {[%clk 0:00:01.7]} 58... h2 {[%clk 0:00:18.4]} 59. Ng2 {[%clk 0:00:02]}
59... Kc8 {[%clk 0:00:11.2]} 60. Nf4 {[%clk 0:00:01.1]} 60... h1=Q+ {[%clk
0:00:11.6]} 61. Ng2 {[%clk 0:00:01.9]} 61... Qxg2# {[%clk 0:00:11.9]} 0-1

[Event "Early-Titled-Tuesday-Blitz-May-07-2024"]
[Site "Chess.com"]
[Date "2024.05.07"]
[Round "1"]
[White "PonyQueen07"]
[Black "ChadBiryani"]
[Result "0-1"]
[WhiteElo "2138"]
[BlackElo "2564"]
[TimeControl "180+1"]
[EndTime "8:08:27 PDT"]
[Termination "ChadBiryani won by checkmate"]

1. c4 {[%clk 0:03:00.9]} 1... f5 {[%clk 0:02:52.8]} 2. Nc3 {[%clk 0:03:00.9]}
2... Nf6 {[%clk 0:02:53]} 3. g3 {[%clk 0:03:01]} 3... d6 {[%clk 0:02:53.4]} 4.
Bg2 {[%clk 0:03:01.6]} 4... e5 {[%clk 0:02:53.8]} 5. d3 {[%clk 0:02:59.3]} 5...
Be7 {[%clk 0:02:54.4]} 6. Nf3 {[%clk 0:02:59.2]} 6... O-O {[%clk 0:02:54.8]} 7.
O-O {[%clk 0:02:59.7]} 7... c6 {[%clk 0:02:52.3]} 8. Bg5 {[%clk 0:02:59.9]} 8...
Qe8 {[%clk 0:02:51.2]} 9. e4 {[%clk 0:02:51.7]} 9... h6 {[%clk 0:02:45.8]} 10.
Bxf6 {[%clk 0:02:51.5]} 10... Bxf6 {[%clk 0:02:45.2]} 11. exf5 {[%clk
0:02:50.5]} 11... Bxf5 {[%clk 0:02:44.6]} 12. Ne4 {[%clk 0:02:50.4]} 12... Be7
{[%clk 0:02:43.9]} 13. Qb3 {[%clk 0:02:37.9]} 13... Bxe4 {[%clk 0:02:39.3]} 14.
dxe4 {[%clk 0:02:37.8]} 14... b6 {[%clk 0:02:38.3]} 15. c5+ {[%clk 0:02:35.5]}
15... Kh7 {[%clk 0:02:36.2]} 16. cxb6 {[%clk 0:02:30.6]} 16... axb6 {[%clk
0:02:36.1]} 17. Qxb6 {[%clk 0:02:30.5]} 17... Na6 {[%clk 0:02:33.8]} 18. Rac1
{[%clk 0:02:28.2]} 18... Nc5 {[%clk 0:02:27.7]} 19. Rxc5 {[%clk 0:02:00.8]}
19... dxc5 {[%clk 0:02:27.8]} 20. Nxe5 {[%clk 0:01:50.5]} 20... Bf6 {[%clk
0:02:13.6]} 21. Nxc6 {[%clk 0:01:42.2]} 21... Rxa2 {[%clk 0:02:07.4]} 22. Qxc5
{[%clk 0:01:32.8]} 22... Rxb2 {[%clk 0:02:00.1]} 23. e5 {[%clk 0:01:32.5]} 23...
Bd8 {[%clk 0:01:33.5]} 24. Nxd8 {[%clk 0:01:12.9]} 24... Qxd8 {[%clk 0:01:31]}
25. e6 {[%clk 0:00:59.2]} 25... Re2 {[%clk 0:01:24.3]} 26. Qd5 {[%clk
0:00:24.7]} 26... Kh8 {[%clk 0:01:07]} 27. Qxd8 {[%clk 0:00:19.7]} 27... Rxd8
{[%clk 0:01:07]} 28. Bh3 {[%clk 0:00:20.1]} 28... Rdd2 {[%clk 0:00:55.6]} 29.
Bg4 {[%clk 0:00:16.5]} 29... Re4 {[%clk 0:00:55.3]} 30. Bh3 {[%clk 0:00:14.4]}
30... g6 {[%clk 0:00:52]} 31. Ra1 {[%clk 0:00:10.9]} 31... Kg7 {[%clk
0:00:50.3]} 32. Ra7+ {[%clk 0:00:06.9]} 32... Kf6 {[%clk 0:00:49.8]} 33. Rf7+
{[%clk 0:00:06.9]} 33... Kg5 {[%clk 0:00:49.4]} 34. Kg2 {[%clk 0:00:03.6]} 34...
Rde2 {[%clk 0:00:40.1]} 35. Rf3 {[%clk 0:00:03.3]} 35... h5 {[%clk 0:00:39.6]}
36. Rf8 {[%clk 0:00:02.9]} 36... Kh6 {[%clk 0:00:39.6]} 37. Rh8+ {[%clk
0:00:02.6]} 37... Kg7 {[%clk 0:00:40.2]} 38. Ra8 {[%clk 0:00:02.4]} 38... g5
{[%clk 0:00:40.8]} 39. Bf5 {[%clk 0:00:01.8]} 39... Re5 {[%clk 0:00:40.6]} 40.
g4 {[%clk 0:00:02.3]} 40... h4 {[%clk 0:00:28.2]} 41. Ra7+ {[%clk 0:00:02.1]}
41... Kf8 {[%clk 0:00:24.3]} 42. Rf7+ {[%clk 0:00:02.5]} 42... Kg8 {[%clk
0:00:22.6]} 43. Ra7 {[%clk 0:00:02.1]} 43... Kf8 {[%clk 0:00:20.2]} 44. Ra8+
{[%clk 0:00:02.6]} 44... Ke7 {[%clk 0:00:20.5]} 45. Ra7+ {[%clk 0:00:03.3]}
45... Kd6 {[%clk 0:00:20.5]} 46. Rd7+ {[%clk 0:00:03.7]} 46... Kc6 {[%clk
0:00:20.9]} 47. Rg7 {[%clk 0:00:03.2]} 47... Rd2 {[%clk 0:00:19.5]} 48. Rxg5
{[%clk 0:00:03.1]} 48... Ree2 {[%clk 0:00:20.2]} 49. Kf3 {[%clk 0:00:03.5]}
49... Rxf2+ {[%clk 0:00:20.5]} 50. Ke4 {[%clk 0:00:04.1]} 50... Rde2+ {[%clk
0:00:19.7]} 51. Kd4 {[%clk 0:00:04.7]} 51... Rxh2 {[%clk 0:00:14.3]} 52. Rh5
{[%clk 0:00:03.5]} 52... Kd6 {[%clk 0:00:13]} 53. g5 {[%clk 0:00:03.3]} 53...
Rd2+ {[%clk 0:00:10.5]} 54. Ke3 {[%clk 0:00:03.4]} 54... Ra2 {[%clk 0:00:10.5]}
55. g6 {[%clk 0:00:03.5]} 55... Ra3+ {[%clk 0:00:10.7]} 56. Kf4 {[%clk 0:00:04]}
56... Rf2+ {[%clk 0:00:09.7]} 57. Kg5 {[%clk 0:00:04.1]} 57... Ke5 {[%clk
0:00:08.9]} 58. g7 {[%clk 0:00:04.3]} 58... Rg3+ {[%clk 0:00:08.3]} 59. Kh6
{[%clk 0:00:04.5]} 59... Kf6 {[%clk 0:00:07.7]} 60. Bh7 {[%clk 0:00:03.5]} 60...
Rxg7 {[%clk 0:00:04.7]} 61. Rxh4 {[%clk 0:00:02.2]} 61... Re7 {[%clk 0:00:03.5]}
62. Rg4 {[%clk 0:00:01.6]} 62... Rxe6 {[%clk 0:00:03.2]} 63. Rg6+ {[%clk
0:00:02.2]} 63... Ke7 {[%clk 0:00:03.8]} 64. Rxe6+ {[%clk 0:00:01]} 64... Kxe6
{[%clk 0:00:04.5]} 65. Kg6 {[%clk 0:00:01.1]} 65... Rg2+ {[%clk 0:00:04.7]} 66.
Kh6 {[%clk 0:00:01.6]} 66... Kf6 {[%clk 0:00:04.7]} 67. Bb1 {[%clk 0:00:01.7]}
67... Rh2# {[%clk 0:00:04.9]} 0-1

[Event "Early-Titled-Tuesday-Blitz-May-07-2024"]
[Site "Chess.com"]
[Date "2024.05.07"]
[Round "1"]
[White "milovichalex"]
[Black "Chess23Wizzard"]
[Result "0-1"]
[WhiteElo "2394"]
[BlackElo "2696"]
[TimeControl "180+1"]
[EndTime "8:08:30 PDT"]
[Termination "Chess23Wizzard won by resignation"]

1. e4 {[%clk 0:03:00.9]} 1... c6 {[%clk 0:02:59.9]} 2. Nc3 {[%clk 0:02:59]} 2...
d5 {[%clk 0:03:00.4]} 3. exd5 {[%clk 0:02:59.4]} 3... cxd5 {[%clk 0:03:00]} 4.
d4 {[%clk 0:03:00.3]} 4... Nf6 {[%clk 0:02:59.3]} 5. Bf4 {[%clk 0:03:00.5]} 5...
a6 {[%clk 0:02:57.7]} 6. Nf3 {[%clk 0:03:00]} 6... Bg4 {[%clk 0:02:54.7]} 7. Be2
{[%clk 0:03:00]} 7... Nc6 {[%clk 0:02:54.5]} 8. O-O {[%clk 0:02:58.6]} 8... e6
{[%clk 0:02:54.6]} 9. h3 {[%clk 0:02:58.3]} 9... Bh5 {[%clk 0:02:54.1]} 10. Re1
{[%clk 0:02:52.6]} 10... Bd6 {[%clk 0:02:53.5]} 11. Ne5 {[%clk 0:02:51.7]} 11...
Bxe2 {[%clk 0:02:53.2]} 12. Rxe2 {[%clk 0:02:48.7]} 12... Rc8 {[%clk 0:02:51.3]}
13. a3 {[%clk 0:02:33.1]} 13... O-O {[%clk 0:02:49.9]} 14. Qd3 {[%clk
0:02:31.8]} 14... Qb6 {[%clk 0:02:25.7]} 15. Nd7 {[%clk 0:02:07.5]} 15... Nxd7
{[%clk 0:02:23.5]} 16. Bxd6 {[%clk 0:02:07.8]} 16... Nxd4 {[%clk 0:02:22.2]} 17.
Bxf8 {[%clk 0:01:26.2]} 17... Nxe2+ {[%clk 0:02:18]} 18. Qxe2 {[%clk 0:01:18.7]}
18... Qxb2 {[%clk 0:01:54.1]} 19. Rb1 {[%clk 0:01:12.7]} 19... Qxc3 {[%clk
0:01:54.2]} 20. Bd6 {[%clk 0:01:05.9]} 20... b5 {[%clk 0:01:51]} 21. a4 {[%clk
0:00:54]} 21... Qxc2 {[%clk 0:01:18.4]} 22. Qxc2 {[%clk 0:00:48.5]} 22... Rxc2
{[%clk 0:01:19.3]} 23. axb5 {[%clk 0:00:49]} 23... axb5 {[%clk 0:01:19.3]} 24.
Rxb5 {[%clk 0:00:49.7]} 24... Rc6 {[%clk 0:01:10.3]} 25. Bf4 {[%clk 0:00:35.6]}
25... h6 {[%clk 0:00:53.7]} 26. g4 {[%clk 0:00:32.6]} 26... g5 {[%clk
0:00:52.8]} 27. Bg3 {[%clk 0:00:30]} 27... Kg7 {[%clk 0:00:52.6]} 28. Kg2 {[%clk
0:00:30.1]} 28... Nf8 {[%clk 0:00:50.8]} 29. Be5+ {[%clk 0:00:29.4]} 29... f6
{[%clk 0:00:30.1]} 30. Rb7+ {[%clk 0:00:28.9]} 30... Kg6 {[%clk 0:00:29.1]} 31.
Bb2 {[%clk 0:00:20.5]} 31... e5 {[%clk 0:00:28.3]} 32. Rb8 {[%clk 0:00:18.6]}
32... Ne6 {[%clk 0:00:26.6]} 33. Ba3 {[%clk 0:00:17.5]} 33... Nf4+ {[%clk
0:00:24.7]} 34. Kh2 {[%clk 0:00:16.9]} 34... d4 {[%clk 0:00:16.8]} 35. Rb7
{[%clk 0:00:16.4]} 35... Ne6 {[%clk 0:00:12.6]} 36. Rd7 {[%clk 0:00:12.2]} 36...
Rc7 {[%clk 0:00:11]} 37. Rd6 {[%clk 0:00:11.9]} 37... Nf4 {[%clk 0:00:10.7]} 38.
Ra6 {[%clk 0:00:08.7]} 38... Kf7 {[%clk 0:00:10.2]} 39. Ra8 {[%clk 0:00:07.5]}
39... d3 {[%clk 0:00:10]} 40. Rd8 {[%clk 0:00:06.9]} 40... Ke6 {[%clk 0:00:09]}
41. Rd6+ {[%clk 0:00:06.5]} 41... Kf7 {[%clk 0:00:08.9]} 42. Kg3 {[%clk
0:00:07]} 42... Rc3 {[%clk 0:00:08.5]} 43. f3 {[%clk 0:00:06.7]} 43... Rxa3
{[%clk 0:00:08.5]} 44. Rd7+ {[%clk 0:00:07]} 44... Ke6 {[%clk 0:00:08.7]} 45.
Rd8 {[%clk 0:00:06.7]} 45... e4 {[%clk 0:00:09.1]} 46. Re8+ {[%clk 0:00:07]}
46... Kd5 {[%clk 0:00:08.9]} 47. fxe4+ {[%clk 0:00:06.9]} 47... Kd4 {[%clk
0:00:09.4]} 48. Rd8+ {[%clk 0:00:06.3]} 48... Ke3 {[%clk 0:00:09.9]} 49. e5
{[%clk 0:00:06.1]} 49... fxe5 {[%clk 0:00:10]} 50. h4 {[%clk 0:00:06.5]} 50...
Ra1 {[%clk 0:00:09.7]} 51. hxg5 {[%clk 0:00:06.4]} 51... Rg1+ {[%clk 0:00:09.1]}
52. Kh2 {[%clk 0:00:06.8]} 52... Rg2+ {[%clk 0:00:09.6]} 53. Kh1 {[%clk
0:00:06.6]} 53... Rxg4 {[%clk 0:00:09.6]} 54. gxh6 {[%clk 0:00:06]} 54... d2
{[%clk 0:00:07.2]} 55. h7 {[%clk 0:00:05.4]} 55... Rh4+ {[%clk 0:00:07.2]} 56.
Kg1 {[%clk 0:00:05.9]} 56... Rxh7 {[%clk 0:00:07.6]} 57. Rd7 {[%clk 0:00:03.3]}
57... Rxd7 {[%clk 0:00:06.8]} 0-1

[Event "Early-Titled-Tuesday-Blitz-May-07-2024"]
[Site "Chess.com"]
[Date "2024.05.07"]
[Round "1"]
[White "GP9isback23"]
[Black "schackspelaren"]
[Result "0-1"]
[WhiteElo "2644"]
[BlackElo "2378"]
[TimeControl "180+1"]
[EndTime "8:08:31 PDT"]
[Termination "schackspelaren won by resignation"]

1. d4 {[%clk 0:03:00.9]} 1... Nf6 {[%clk 0:02:59.3]} 2. Nf3 {[%clk 0:03:00.3]}
2... e6 {[%clk 0:02:59.3]} 3. c4 {[%clk 0:03:00.4]} 3... d5 {[%clk 0:02:57.9]}
4. Nc3 {[%clk 0:03:00.3]} 4... Bb4 {[%clk 0:02:58]} 5. cxd5 {[%clk 0:02:58.8]}
5... exd5 {[%clk 0:02:58.3]} 6. Bg5 {[%clk 0:02:59.1]} 6... O-O {[%clk
0:02:57.8]} 7. e3 {[%clk 0:02:59.5]} 7... Nbd7 {[%clk 0:02:57.6]} 8. Be2 {[%clk
0:02:59]} 8... c5 {[%clk 0:02:57.2]} 9. O-O {[%clk 0:02:59]} 9... Bxc3 {[%clk
0:02:54.4]} 10. bxc3 {[%clk 0:02:59.9]} 10... Qa5 {[%clk 0:02:54.2]} 11. Bxf6
{[%clk 0:02:58.1]} 11... Nxf6 {[%clk 0:02:53.8]} 12. Qb3 {[%clk 0:02:53.7]}
12... c4 {[%clk 0:02:53.8]} 13. Qb2 {[%clk 0:02:52]} 13... Bf5 {[%clk
0:02:46.6]} 14. Rfc1 {[%clk 0:02:20.5]} 14... Rab8 {[%clk 0:02:46.8]} 15. a3
{[%clk 0:02:20.2]} 15... Ne4 {[%clk 0:02:44.5]} 16. Nd2 {[%clk 0:02:19.3]} 16...
Nf6 {[%clk 0:02:41.8]} 17. Qb4 {[%clk 0:02:17.8]} 17... Qc7 {[%clk 0:02:36.6]}
18. a4 {[%clk 0:02:16.6]} 18... Rfe8 {[%clk 0:02:36.5]} 19. a5 {[%clk
0:02:15.1]} 19... h6 {[%clk 0:02:34.3]} 20. Bf3 {[%clk 0:02:06]} 20... Re6
{[%clk 0:02:30.6]} 21. Ra2 {[%clk 0:01:57.8]} 21... Rc8 {[%clk 0:02:19.6]} 22.
g3 {[%clk 0:01:52.2]} 22... b6 {[%clk 0:02:17.5]} 23. a6 {[%clk 0:01:51.7]}
23... Ne4 {[%clk 0:02:08.1]} 24. Nxe4 {[%clk 0:01:49.8]} 24... Bxe4 {[%clk
0:02:08.2]} 25. Bxe4 {[%clk 0:01:50]} 25... dxe4 {[%clk 0:02:08.4]} 26. Ra4
{[%clk 0:01:41]} 26... Rg6 {[%clk 0:02:07.8]} 27. Qb5 {[%clk 0:01:40.3]} 27...
Rg5 {[%clk 0:01:59]} 28. Qb1 {[%clk 0:01:38.3]} 28... f5 {[%clk 0:01:55.3]} 29.
Kh1 {[%clk 0:01:28]} 29... h5 {[%clk 0:01:55.6]} 30. h4 {[%clk 0:01:26.5]} 30...
Rxg3 {[%clk 0:01:41.9]} 31. fxg3 {[%clk 0:01:22.4]} 31... Qxg3 {[%clk
0:01:42.4]} 32. Ra2 {[%clk 0:01:10.4]} 32... Qxe3 {[%clk 0:01:33.8]} 33. Rf1
{[%clk 0:01:01]} 33... f4 {[%clk 0:01:27.2]} 34. Qe1 {[%clk 0:00:52.9]} 34...
Qh3+ {[%clk 0:01:25.4]} 35. Rh2 {[%clk 0:00:51.9]} 35... Qf5 {[%clk 0:01:26]}
36. Qd2 {[%clk 0:00:38.5]} 36... Rf8 {[%clk 0:01:23]} 37. Qg2 {[%clk 0:00:31.1]}
37... f3 {[%clk 0:01:13.9]} 38. Qg5 {[%clk 0:00:31.1]} 38... Qxg5 {[%clk
0:01:09.3]} 39. hxg5 {[%clk 0:00:32]} 39... e3 {[%clk 0:01:09.7]} 40. Kg1 {[%clk
0:00:17.5]} 40... f2+ {[%clk 0:01:09.7]} 41. Kg2 {[%clk 0:00:14.4]} 41... e2
{[%clk 0:01:05.7]} 42. Rhh1 {[%clk 0:00:14.3]} 42... exf1=Q+ {[%clk 0:00:59.1]}
43. Rxf1 {[%clk 0:00:15.2]} 43... h4 {[%clk 0:00:57.9]} 44. Kh3 {[%clk
0:00:14.5]} 44... Rf3+ {[%clk 0:00:55.7]} 45. Kxh4 {[%clk 0:00:14.4]} 45... Rxc3
{[%clk 0:00:56.2]} 46. Rxf2 {[%clk 0:00:13.8]} 46... Rd3 {[%clk 0:00:54.8]} 47.
g6 {[%clk 0:00:14.1]} 47... Rxd4+ {[%clk 0:00:54.7]} 48. Kg5 {[%clk 0:00:14.8]}
48... Rd5+ {[%clk 0:00:53.9]} 49. Kg4 {[%clk 0:00:15.1]} 49... c3 {[%clk
0:00:51.4]} 50. Rf7 {[%clk 0:00:12.1]} 50... c2 {[%clk 0:00:46.8]} 51. Rxa7
{[%clk 0:00:12.1]} 51... Rg5+ {[%clk 0:00:37.3]} 52. Kh4 {[%clk 0:00:11.3]}
52... Rxg6 {[%clk 0:00:36.8]} 53. Rc7 {[%clk 0:00:11.1]} 53... b5 {[%clk
0:00:34.4]} 54. a7 {[%clk 0:00:10.6]} 54... Ra6 {[%clk 0:00:34.1]} 55. Rxc2
{[%clk 0:00:04.2]} 55... Rxa7 {[%clk 0:00:33.3]} 56. Rb2 {[%clk 0:00:01.8]}
56... Rb7 {[%clk 0:00:33.4]} 57. Kg5 {[%clk 0:00:02.7]} 57... b4 {[%clk
0:00:33.7]} 58. Kg6 {[%clk 0:00:03]} 58... b3 {[%clk 0:00:33.7]} 59. Kg5 {[%clk
0:00:00.6]} 59... Rb6 {[%clk 0:00:34.1]} 60. Kf4 {[%clk 0:00:01.3]} 60... Kf7
{[%clk 0:00:33.9]} 61. Ke4 {[%clk 0:00:02.2]} 61... g5 {[%clk 0:00:34.1]} 62.
Kd4 {[%clk 0:00:03.1]} 62... Kg6 {[%clk 0:00:34.4]} 63. Kd3 {[%clk 0:00:04]}
63... g4 {[%clk 0:00:34]} 64. Kc3 {[%clk 0:00:04.9]} 64... Kg5 {[%clk
0:00:34.2]} 65. Rd2 {[%clk 0:00:04.6]} 65... g3 {[%clk 0:00:33.4]} 66. Kb2
{[%clk 0:00:04.6]} 66... Kg4 {[%clk 0:00:33.5]} 67. Rd8 {[%clk 0:00:04.5]} 67...
g2 {[%clk 0:00:31.4]} 68. Rg8+ {[%clk 0:00:05]} 68... Kf3 {[%clk 0:00:31.6]} 69.
Kb1 {[%clk 0:00:04.2]} 69... Kf2 {[%clk 0:00:30.8]} 70. Rf8+ {[%clk 0:00:04.6]}
70... Kg1 {[%clk 0:00:30.5]} 71. Kb2 {[%clk 0:00:04.6]} 71... Rb4 {[%clk
0:00:30.6]} 72. Kc3 {[%clk 0:00:03.9]} 72... b2 {[%clk 0:00:28.1]} 0-1

[Event "Early-Titled-Tuesday-Blitz-May-07-2024"]
[Site "Chess.com"]
[Date "2024.05.07"]
[Round "1"]
[White "anasta10"]
[Black "Kostina_Nadezhda"]
[Result "1/2-1/2"]
[WhiteElo "2614"]
[BlackElo "2336"]
[TimeControl "180+1"]
[EndTime "8:08:34 PDT"]
[Termination "Game drawn by repetition"]

1. Nf3 {[%clk 0:03:00.9]} 1... Nf6 {[%clk 0:02:59.4]} 2. d4 {[%clk 0:03:00.4]}
2... d5 {[%clk 0:02:59.3]} 3. c4 {[%clk 0:03:00.6]} 3... dxc4 {[%clk 0:02:59.8]}
4. e3 {[%clk 0:02:59.5]} 4... e6 {[%clk 0:02:58.4]} 5. Bxc4 {[%clk 0:02:58.3]}
5... a6 {[%clk 0:02:59]} 6. Nc3 {[%clk 0:02:51.4]} 6... b5 {[%clk 0:02:58.9]} 7.
Bd3 {[%clk 0:02:52.1]} 7... Bb7 {[%clk 0:02:59.5]} 8. O-O {[%clk 0:02:51.8]}
8... c5 {[%clk 0:02:59.5]} 9. Qe2 {[%clk 0:02:51.5]} 9... Nbd7 {[%clk
0:02:56.9]} 10. Rd1 {[%clk 0:02:50.9]} 10... Be7 {[%clk 0:02:50.7]} 11. dxc5
{[%clk 0:02:27.8]} 11... Bxc5 {[%clk 0:02:49.9]} 12. h3 {[%clk 0:02:27.8]} 12...
O-O {[%clk 0:02:46.5]} 13. a3 {[%clk 0:02:28.3]} 13... Rc8 {[%clk 0:02:42.2]}
14. e4 {[%clk 0:02:20.7]} 14... Qc7 {[%clk 0:02:24.1]} 15. Bg5 {[%clk
0:02:15.4]} 15... h6 {[%clk 0:02:02.1]} 16. Bd2 {[%clk 0:02:12.3]} 16... Ne5
{[%clk 0:01:56.9]} 17. Bf4 {[%clk 0:02:00]} 17... Nxf3+ {[%clk 0:01:56.8]} 18.
Qxf3 {[%clk 0:02:00.3]} 18... Qe7 {[%clk 0:01:40.3]} 19. Rac1 {[%clk 0:01:42.7]}
19... Rfd8 {[%clk 0:01:40.2]} 20. Be5 {[%clk 0:01:34.5]} 20... Bd4 {[%clk
0:01:24.4]} 21. Bxd4 {[%clk 0:01:23.3]} 21... Rxd4 {[%clk 0:01:24.1]} 22. Qe3
{[%clk 0:01:24]} 22... Rdd8 {[%clk 0:01:15.5]} 23. e5 {[%clk 0:01:17]} 23... Nd5
{[%clk 0:01:13]} 24. Qe4 {[%clk 0:01:13.5]} 24... g6 {[%clk 0:00:54.2]} 25. Nxd5
{[%clk 0:01:08]} 25... Bxd5 {[%clk 0:00:55.1]} 26. Qf4 {[%clk 0:01:07.7]} 26...
Qg5 {[%clk 0:00:42.4]} 27. Qxg5 {[%clk 0:01:00.6]} 27... hxg5 {[%clk 0:00:43.3]}
28. Be2 {[%clk 0:00:52.6]} 28... Kf8 {[%clk 0:00:23.6]} 29. f3 {[%clk
0:00:51.7]} 29... Ke8 {[%clk 0:00:23.6]} 30. Kf2 {[%clk 0:00:51.3]} 30... Kd7
{[%clk 0:00:22.6]} 31. a4 {[%clk 0:00:49.7]} 31... Rxc1 {[%clk 0:00:15.9]} 32.
Rxc1 {[%clk 0:00:50.6]} 32... bxa4 {[%clk 0:00:16.4]} 33. Bxa6 {[%clk
0:00:50.4]} 33... Bc6 {[%clk 0:00:16.9]} 34. Ke3 {[%clk 0:00:46]} 34... Rb8
{[%clk 0:00:17]} 35. Rc2 {[%clk 0:00:44.4]} 35... Rb3+ {[%clk 0:00:16.9]} 36.
Kd4 {[%clk 0:00:43.9]} 36... a3 {[%clk 0:00:17.4]} 37. bxa3 {[%clk 0:00:42]}
37... Rxa3 {[%clk 0:00:18.3]} 38. Bc4 {[%clk 0:00:42.5]} 38... Ra4 {[%clk
0:00:18.7]} 39. Kc3 {[%clk 0:00:41.1]} 39... Ra3+ {[%clk 0:00:19.1]} 40. Kb4
{[%clk 0:00:40.9]} 40... Re3 {[%clk 0:00:19.6]} 41. Ra2 {[%clk 0:00:35.9]} 41...
Rxe5 {[%clk 0:00:18.8]} 42. Ra7+ {[%clk 0:00:36.5]} 42... Kd6 {[%clk 0:00:19.2]}
43. Rxf7 {[%clk 0:00:36.3]} 43... Rf5 {[%clk 0:00:18.1]} 44. Rg7 {[%clk
0:00:35.8]} 44... Bxf3 {[%clk 0:00:18.3]} 45. gxf3 {[%clk 0:00:35.4]} 45... Rxf3
{[%clk 0:00:19.2]} 46. Rxg6 {[%clk 0:00:34.7]} 46... Rxh3 {[%clk 0:00:19.4]} 47.
Rxe6+ {[%clk 0:00:34]} 47... Kd7 {[%clk 0:00:19.2]} 48. Rg6 {[%clk 0:00:34.1]}
48... Rh4 {[%clk 0:00:13.8]} 49. Kc5 {[%clk 0:00:34.1]} 49... g4 {[%clk
0:00:13.3]} 50. Be6+ {[%clk 0:00:34.1]} 50... Kc7 {[%clk 0:00:13.5]} 51. Bxg4
{[%clk 0:00:34.3]} 51... Rh1 {[%clk 0:00:13.1]} 52. Rg7+ {[%clk 0:00:34.6]}
52... Kd8 {[%clk 0:00:13.1]} 53. Be6 {[%clk 0:00:33.1]} 53... Rc1+ {[%clk
0:00:13.2]} 54. Kd6 {[%clk 0:00:33.4]} 54... Rd1+ {[%clk 0:00:13.7]} 55. Bd5
{[%clk 0:00:33.8]} 55... Re1 {[%clk 0:00:13.2]} 56. Ra7 {[%clk 0:00:32.2]} 56...
Ke8 {[%clk 0:00:12.7]} 57. Be6 {[%clk 0:00:29.5]} 57... Rd1+ {[%clk 0:00:12.1]}
58. Ke5 {[%clk 0:00:29.9]} 58... Re1+ {[%clk 0:00:12.2]} 59. Kf6 {[%clk
0:00:30.4]} 59... Rf1+ {[%clk 0:00:12.6]} 60. Bf5 {[%clk 0:00:31.1]} 60... Rd1
{[%clk 0:00:11.5]} 61. Re7+ {[%clk 0:00:28.7]} 61... Kd8 {[%clk 0:00:11.7]} 62.
Rg7 {[%clk 0:00:29.2]} 62... Rd2 {[%clk 0:00:09.9]} 63. Ke5 {[%clk 0:00:27.8]}
63... Re2+ {[%clk 0:00:09.8]} 64. Be4 {[%clk 0:00:28.1]} 64... Rd2 {[%clk
0:00:09.3]} 65. Bd5 {[%clk 0:00:27.9]} 65... Re2+ {[%clk 0:00:09.5]} 66. Kd6
{[%clk 0:00:28.6]} 66... Re1 {[%clk 0:00:08.8]} 67. Rh7 {[%clk 0:00:21.4]} 67...
Re2 {[%clk 0:00:07.9]} 68. Rg7 {[%clk 0:00:18.1]} 68... Re1 {[%clk 0:00:07.9]}
1/2-1/2